[Event "23rd Pirc Memorial GM 2020"]
[Site "Maribor"]
[Date "2020.08.14"]
[Round "7.1"]
[White "Marn, Jan"]
[Black "Mohr, Georg"]
[Result "1-0"]
[ECO "A72"]
[WhiteElo "2360"]
[BlackElo "2434"]
[Annotator "ChessBase"]
[PlyCount "45"]
[EventDate "2020.08.10"]
[EventType "tourn"]
[EventCountry "SLO"]
[SourceTitle "playchess.com"]
[Source "ChessBase"]
[SourceQuality "1"]
[TimeControl "40/5400+30:1800+30"]

1. d4 {[%emt 0:00:00]} d6 {[%emt 0:00:00]} 2. c4 {[%emt 0:00:00]} g6 {[%emt 0:00:00]} 3. Nc3 {[%emt 0:00:20]} Bg7 {[%emt 0:00:00]} 4. e4 {[%emt 0:00:57]} c5 {[%emt 0:00:00]} 5. d5 {[%emt 0:00:10]} e6 {[%emt 0:00:44]} 6. Nf3 {[%emt 0:01:38]} exd5 {[%emt 0:06:49]} 7. cxd5 {[%emt 0:00:35]} Nf6 {[%emt 0:01:27]} 8. Be2 {[%emt 0:06:13]} O-O {[%emt 0:00:06]} 9. Be3 {[%emt 0:01:00]} b5 {[%emt 0:15:41]} 10. e5 {[%emt 0:04:49]} Ng4 {[%emt 0:20:49]} 11. Bg5 {[%emt 0:03:36]} Qb6 {[%emt 0:07:04]} 12. Be7 {[%emt 0:10:18]} Re8 {[%emt 0:09:58]} 13. exd6 {[%emt 0:00:18]} c4 {[%emt 0:01:56]} 14. O-O {[%emt 0:00:19]} Nd7 {[%emt 0:01:45]} 15. a4 {[%emt 0:10:07]} Ba6 {[%emt 0:07:02]} 16. axb5 {[%emt 0:02:15]} Bxb5 {[%emt 0:00:01]} 17. Nxb5 {[%emt 0:00:59]} Qxb5 {[%emt 0:00:06]} 18. Nd4 {[%emt 0:02:08]} Qxb2 {[%emt 0:04:14]} 19. Bxg4 {[%emt 0:00:39]} f5 {[%emt 0:00:05]} 20. Nxf5 {[%emt 0:03:53]} gxf5 {[%emt 0:02:08]} 21. Bxf5 {[%emt 0:00:42]} Nf6 {[%emt 0:00:06]} 22. Re1 {[%emt 0:05:28]} Kh8 {[%emt 0:00:13]} 23. Rb1 {[%emt 0:02:00]} 1-0

[Event "23rd Pirc Memorial GM 2020"]
[Site "Maribor"]
[Date "2020.08.14"]
[Round "7.3"]
[White "Markoja, Boris"]
[Black "Lampert, Jonas"]
[Result "1/2-1/2"]
[ECO "A14"]
[WhiteElo "2440"]
[BlackElo "2531"]
[Annotator "ChessBase"]
[PlyCount "46"]
[EventDate "2020.08.10"]
[EventType "tourn"]
[EventCountry "SLO"]
[SourceTitle "playchess.com"]
[Source "ChessBase"]
[SourceQuality "1"]
[TimeControl "40/5400+30:1800+30"]

1. c4 {[%emt 0:00:00]} e6 {[%emt 0:00:00]} 2. Nf3 {[%emt 0:00:00]} d5 {[%emt 0:00:00]} 3. e3 {[%emt 0:00:00]} Nf6 {[%emt 0:00:04]} 4. b3 {[%emt 0:00:20]} Be7 {[%emt 0:00:13]} 5. Bb2 {[%emt 0:00:18]} O-O {[%emt 0:00:13]} 6. Nc3 {[%emt 0:00:23]} dxc4 {[%emt 0:00:46]} 7. bxc4 {[%emt 0:00:34]} b6 {[%emt 0:00:08]} 8. g3 {[%emt 0:07:33]} Bb7 {[%emt 0:00:09]} 9. Bg2 {[%emt 0:00:07]} c5 {[%emt 0:00:21]} 10. O-O {[%emt 0:01:09]} Nc6 {[%emt 0:00:38]} 11. Qe2 {[%emt 0:03:01]} a6 {[%emt 0:02:28]} 12. Rfd1 {[%emt 0:03:16]} Qc7 {[%emt 0:00:31]} 13. Rab1 {[%emt 0:02:44]} Rab8 {[%emt 0:03:56]} 14. Ba1 {[%emt 0:04:13]} Na5 {[%emt 0:00:59]} 15. d3 {[%emt 0:03:50]} Rfd8 {[%emt 0:00:26]} 16. Na4 {[%emt 0:06:25]} b5 {[%emt 0:10:34]} 17. Nb2 {[%emt 0:09:26]} b4 {[%emt 0:11:23]} 18. Rbc1 {[%emt 0:08:44]} e5 {[%emt 0:07:33]} 19. d4 {[%emt 0:07:55]} exd4 {[%emt 0:23:39]} 20. exd4 {[%emt 0:00:08]} Bxf3 {[%emt 0:06:16]} 21. Bxf3 {[%emt 0:00:06]} cxd4 {[%emt 0:01:24]} 22. Nd3 {[%emt 0:00:58]} b3 {[%emt 0:01:21]} 23. c5 {[%emt 0:07:59]} bxa2 {[%emt 0:00:41]} 1/2-1/2

[Event "23rd Pirc Memorial GM 2020"]
[Site "Maribor"]
[Date "2020.08.14"]
[Round "7.5"]
[White "Subelj, Jan"]
[Black "Mikhalchishin, Adrian"]
[Result "1/2-1/2"]
[ECO "C42"]
[WhiteElo "2408"]
[BlackElo "2458"]
[Annotator "ChessBase"]
[PlyCount "56"]
[EventDate "2020.08.10"]
[EventType "tourn"]
[EventCountry "SLO"]
[SourceTitle "playchess.com"]
[Source "ChessBase"]
[SourceQuality "1"]
[TimeControl "40/5400+30:1800+30"]

1. e4 {[%emt 0:00:00]} e5 {[%emt 0:00:00]} 2. Nf3 {[%emt 0:00:09]} Nf6 {[%emt 0:00:00]} 3. Nxe5 {[%emt 0:00:29]} d6 {[%emt 0:00:00]} 4. Nf3 {[%emt 0:00:26]} Nxe4 {[%emt 0:00:00]} 5. Qe2 {[%emt 0:03:35]} Qe7 {[%emt 0:01:11]} 6. d3 {[%emt 0:00:14]} Nf6 {[%emt 0:00:25]} 7. Bg5 {[%emt 0:00:17]} Nbd7 {[%emt 0:00:21]} 8. Nc3 {[%emt 0:01:17]} Qxe2+ {[%emt 0:00:27]} 9. Bxe2 {[%emt 0:00:09]} h6 {[%emt 0:00:09]} 10. Bh4 {[%emt 0:01:39]} c6 {[%emt 0:21:24]} 11. O-O-O {[%emt 0:03:32]} d5 {[%emt 0:11:43]} 12. Rhe1 {[%emt 0:01:53]} Bd6 {[%emt 0:04:10]} 13. Bf1+ {[%emt 0:06:21]} Kd8 {[%emt 0:07:49]} 14. d4 {[%emt 0:02:39]} Bf4+ {[%emt 0:03:25]} 15. Kb1 {[%emt 0:00:31]} g5 {[%emt 0:00:27]} 16. Bg3 {[%emt 0:01:30]} Bxg3 {[%emt 0:00:35]} 17. hxg3 {[%emt 0:05:10]} Ng4 {[%emt 0:01:16]} 18. Rd2 {[%emt 0:02:20]} Re8 {[%emt 0:00:57]} 19. b3 {[%emt 0:14:17]} Nf8 {[%emt 0:11:42]} 20. Na4 {[%emt 0:06:27]} Bf5 {[%emt 0:03:14]} 21. Rxe8+ {[%emt 0:00:46]} Kxe8 {[%emt 0:00:06]} 22. Nc5 {[%emt 0:00:16]} b6 {[%emt 0:02:46]} 23. Bd3 {[%emt 0:04:25]} Bxd3 {[%emt 0:06:26]} 24. Nxd3 {[%emt 0:00:07]} Ng6 {[%emt 0:00:19]} 25. Re2+ {[%emt 0:20:18]} Kd7 {[%emt 0:01:13]} 26. Nfe5+ {[%emt 0:01:03]} N4xe5 {[%emt 0:03:26]} 27. Nxe5+ {[%emt 0:00:10]} Nxe5 {[%emt 0:00:26]} 28. Rxe5 {[%emt 0:00:20]} f6 {[%emt 0:03:43]} 1/2-1/2

[Event "23rd Pirc Memorial GM 2020"]
[Site "Maribor"]
[Date "2020.08.16"]
[Round "9.1"]
[White "Morgunov, Marc"]
[Black "Mohr, Georg"]
[Result "1/2-1/2"]
[ECO "C07"]
[WhiteElo "2341"]
[BlackElo "2434"]
[Annotator "ChessBase"]
[PlyCount "68"]
[EventDate "2020.08.10"]
[EventType "tourn"]
[EventCountry "SLO"]
[SourceTitle "playchess.com"]
[Source "ChessBase"]
[SourceQuality "1"]
[TimeControl "40/5400+30:1800+30"]

1. e4 {[%emt 0:00:00]} e6 {[%emt 0:00:00]} 2. d4 {[%emt 0:00:14]} d5 {[%emt 0:00:00]} 3. Nd2 {[%emt 0:00:09]} c5 {[%emt 0:00:00]} 4. Ngf3 {[%emt 0:00:38]} cxd4 {[%emt 0:03:33]} 5. Nxd4 {[%emt 0:00:18]} Nc6 {[%emt 0:01:40]} 6. Bb5 {[%emt 0:00:07]} Bd7 {[%emt 0:01:50]} 7. Nxc6 {[%emt 0:00:12]} Bxc6 {[%emt 0:00:42]} 8. Bxc6+ {[%emt 0:06:49]} bxc6 {[%emt 0:00:02]} 9. O-O {[%emt 0:00:27]} Nf6 {[%emt 0:01:07]} 10. Qe2 {[%emt 0:03:37]} Be7 {[%emt 0:00:49]} 11. b3 {[%emt 0:20:15]} O-O {[%emt 0:01:13]} 12. Bb2 {[%emt 0:00:16]} a5 {[%emt 0:04:41]} 13. e5 {[%emt 0:13:20]} Nd7 {[%emt 0:02:26]} 14. a4 {[%emt 0:00:29]} Qb6 {[%emt 0:16:36]} 15. Kh1 {[%emt 0:14:30]} Qa6 {[%emt 0:03:11]} 16. Qd1 {[%emt 0:08:12]} Rae8 {[%emt 0:08:43]} 17. f4 {[%emt 0:02:42]} f6 {[%emt 0:00:22]} 18. exf6 {[%emt 0:01:15]} Bxf6 {[%emt 0:00:28]} 19. Bxf6 {[%emt 0:00:07]} Nxf6 {[%emt 0:05:04]} 20. Nf3 {[%emt 0:08:39]} Nd7 {[%emt 0:02:39]} 21. Nd4 {[%emt 0:07:00]} e5 {[%emt 0:11:31]} 22. fxe5 {[%emt 0:00:27]} Nxe5 {[%emt 0:00:24]} 23. Rxf8+ {[%emt 0:03:20]} Rxf8 {[%emt 0:00:10]} 24. c4 {[%emt 0:00:34]} c5 {[%emt 0:02:31]} 25. Nf3 {[%emt 0:00:26]} Qd6 {[%emt 0:12:08]} 26. Nxe5 {[%emt 0:02:23]} Qxe5 {[%emt 0:00:06]} 27. Qxd5+ {[%emt 0:00:25]} Qxd5 {[%emt 0:00:05]} 28. cxd5 {[%emt 0:00:03]} Rb8 {[%emt 0:04:20]} 29. Kg1 {[%emt 0:04:45]} Rxb3 {[%emt 0:00:39]} 30. Rc1 {[%emt 0:00:10]} Rb4 {[%emt 0:00:28]} 31. Rxc5 {[%emt 0:00:04]} Rxa4 {[%emt 0:00:08]} 32. Rc8+ {[%emt 0:00:39]} Kf7 {[%emt 0:00:13]} 33. Rc7+ {[%emt 0:00:04]} Kf6 {[%emt 0:00:16]} 34. d6 {[%emt 0:00:23]} Rd4 {[%emt 0:05:32]} 1/2-1/2